bitfinex/quotes_ETHUSD_20251117
["timestamp","ask_amount","ask_price","bid_price","bid_amount"]
[1763338712454,0.1998,3092.4,3089.8,0.405504]
[1763338712657,0.1998,3092.6,3089.8,0.406504]
[1763338712896,0.1891,3093.0,3090.0,0.405504]
[1763338713192,0.1998,3095.0,3090.4,0.405504]
[1763338713193,0.002,3092.9,3090.4,0.405504]
[1763338713376,0.002,3092.9,3090.6,3.84975441]
[1763338713582,0.002,3092.9,3091.0,0.405504]
[1763338713788,0.002,3092.9,3091.2,0.405504]
[1763338714155,0.002,3092.9,3091.3,1.1337408]
[1763338714464,0.002,3092.9,3092.0,0.405504]
[1763338715988,0.002,3092.9,3091.9,0.405504]
[1763338716375,0.002,3092.9,3091.9,2.71601361]
[1763338716577,0.002,3092.9,3091.9,0.405504]
[1763338717082,0.002,3092.9,3091.9,2.71601361]
[1763338717289,0.002,3092.9,3092.0,0.27160136]
[1763338717790,0.002,3092.9,3091.5,2.31050961]
[1763338717956,0.002,3092.9,3091.4,0.38497544]
[1763338717957,0.002,3092.9,3091.4,2.69548505]
[1763338718160,0.002,3092.9,3091.4,0.38497544]
[1763338718379,0.002,3092.9,3091.5,2.71601361]
[1763338718582,0.002,3092.9,3091.6,2.31050961]
[1763338718780,0.002,3092.9,3091.7,0.63655496]
[1763338719396,0.002,3094.8,3092.0,0.405504]
[1763338719573,0.002,3094.8,3091.9,2.31050961]
[1763338719574,0.002,3094.8,3092.4,0.405504]
[1763338719765,0.002,3094.8,3093.8,0.405504]
[1763338719967,0.002,3094.8,3093.8,2.71601361]
[1763338720176,0.002,3094.8,3094.0,0.405504]
[1763338720377,0.4993,3094.7,3093.2,2.31050961]
[1763338720581,0.002,3094.8,3093.1,0.405504]
[1763338720779,0.002,3094.8,3093.0,0.405504]
[1763338721265,0.002,3094.8,3092.9,2.71601361]
[1763338721506,0.002,3094.8,3093.0,0.27160136]
[1763338721961,0.4993,3094.7,3093.0,0.27160136]
[1763338722297,0.4993,3094.7,3092.1,2.31050961]
[1763338722674,0.4993,3094.7,3091.7,0.23105096]
[1763338723261,0.4993,3094.7,3092.3,0.405504]
[1763338723501,0.4993,3094.7,3092.3,2.71601361]
[1763338723676,0.4993,3094.7,3092.5,0.405504]
[1763338725781,0.4993,3094.7,3092.2,0.405504]
[1763338726604,0.4993,3094.7,3091.7,3.11861133]
[1763338726605,0.4993,3094.7,3091.8,2.31050961]
[1763338726899,0.4993,3094.7,3091.7,0.23105096]
[1763338727124,0.4993,3094.7,3091.2,2.31050961]
[1763338727268,0.405504,3094.6,3091.2,2.31050961]
[1763338727468,0.4993,3094.5,3091.0,2.31050961]
[1763338727704,0.4993,3094.5,3090.8,2.31050961]
[1763338727705,0.405504,3094.2,3090.8,2.31050961]
[1763338727919,0.405504,3094.2,3090.6,2.31050961]
[1763338728072,0.90786851,3094.1,3090.7,2.54156057]
[1763338728270,0.90786851,3094.1,3090.7,0.23105096]
[1763338728473,0.4993,3094.0,3090.7,0.23105096]
[1763338728802,1.1337408,3093.9,3090.7,0.23105096]
[1763338729006,1.1337408,3093.9,3090.3,2.31050961]
[1763338729180,0.4993,3093.8,3090.4,2.31050961]
[1763338729382,0.4993,3093.8,3090.3,2.31050961]
[1763338729571,0.4993,3093.8,3090.1,0.38497544]
[1763338729572,0.405504,3093.7,3090.2,2.31050961]
[1763338729901,1.63064426,3093.3,3090.1,0.38497544]
[1763338730103,1.1337408,3093.5,3090.2,0.26954851]
[1763338730104,0.405504,3093.0,3090.2,0.26954851]
[1763338730303,0.6991,3092.9,3089.8,0.001]
[1763338730691,0.4993,3092.8,3089.8,0.001]
[1763338731094,1.66851541,3092.7,3089.8,0.001]
[1763338731305,0.4993,3092.8,3089.8,0.001]
[1763338731601,1.64291591,3092.6,3089.8,0.001]
[1763338731770,1.60446295,3092.4,3090.0,0.001]
[1763338731969,0.20943159,3092.5,3090.0,0.001]
[1763338731970,2.2947011,3092.5,3090.0,0.001]
[1763338732171,3.18960375,3092.4,3090.0,0.001]
[1763338732508,0.4514,3092.4,3090.0,0.001]
[1763338732807,0.4514,3092.3,3090.0,0.001]
[1763338733024,0.1804,3091.0,3090.0,0.001]
[1763338733700,0.4514,3090.9,3090.0,0.001]
[1763338734524,0.1804,3091.0,3090.0,0.001]
[1763338735132,0.1804,3091.3,3090.0,0.001]
[1763338736121,0.6318,3091.3,3090.0,0.001]
[1763338736493,0.4514,3091.2,3090.0,0.001]
[1763338738637,0.1804,3090.1,3090.0,0.001]
[1763338739095,0.6318,3090.1,3090.0,0.001]
[1763338740136,0.6318,3090.1,3089.0,0.01]
[1763338740291,0.4514,3090.0,3089.0,0.01]
[1763338740903,0.4514,3090.0,3088.1,1.62925616]
[1763338741131,0.4514,3090.0,3088.1,1.79318178]
[1763338741840,0.4514,3090.0,3086.0,0.01]
[1763338741841,0.1804,3088.2,3087.1,1.6378134]
[1763338742243,0.84555148,3088.1,3087.2,0.0818]
[1763338742539,0.1804,3088.2,3087.2,0.0818]
[1763338742740,0.6318,3088.2,3087.2,0.0818]
[1763338742941,0.1804,3088.2,3087.2,0.0818]
[1763338743144,0.1804,3088.2,3086.0,0.01]
[1763338743344,0.0886,3086.1,3086.0,0.01]
[1763338743660,0.39056988,3087.3,3086.0,0.01]
[1763338743808,0.4495,3088.0,3086.0,0.01]
[1763338744143,0.1804,3088.2,3086.1,0.405504]
[1763338744341,0.4495,3087.9,3086.1,0.405504]
[1763338744542,0.4495,3087.9,3086.3,0.405504]
[1763338744752,0.4495,3087.9,3086.0,0.415504]
[1763338745077,0.0886,3086.1,3086.0,0.01]
[1763338745625,0.405504,3088.1,3086.0,0.01]
[1763338745929,0.0886,3086.6,3086.0,0.01]
[1763338746306,0.5381,3086.6,3086.0,0.01]
[1763338746507,0.405504,3086.5,3084.2,1.66610453]
[1763338746748,0.4395,3086.4,3084.1,0.1888]
[1763338746944,0.4395,3086.4,3084.5,0.4786]
[1763338747243,0.4395,3086.3,3084.3,2.14602345]
[1763338747408,0.4395,3086.3,3084.4,1.67237848]
[1763338747608,0.4395,3086.3,3085.1,0.0008]
[1763338748064,0.4395,3086.2,3085.1,0.0008]
[1763338748272,0.43772259,3087.5,3085.2,0.4786]
[1763338748427,0.0886,3085.2,3082.0,1.64846364]
[1763338748629,0.405504,3085.1,3082.7,0.4786]
[1763338748840,0.405504,3085.1,3082.9,0.6674]
[1763338748841,0.4295,3085.1,3082.9,0.6674]
[1763338749374,0.0886,3085.2,3083.6,0.4786]
[1763338749675,0.4295,3085.1,3083.2,0.56943496]
[1763338749972,0.1704,3083.1,3082.0,0.01]
[1763338750172,0.1604,3082.1,3082.0,0.01]
[1763338750461,1.462,3084.7,3083.0,0.1888]
[1763338750864,1.8166236,3086.5,3083.1,0.884104]
[1763338750865,0.4195,3085.5,3083.1,0.884104]
[1763338751070,0.4195,3085.5,3085.0,0.001]
[1763338751252,0.1654,3086.5,3085.0,0.001]
[1763338751253,0.4195,3086.1,3085.0,0.001]
[1763338751640,0.07976489,3084.6,3084.5,0.4786]
[1763338751989,0.07976489,3084.6,3083.0,0.6674]
[1763338752282,0.07976489,3084.6,3084.4,0.001]
[1763338753584,0.07976489,3084.6,3084.5,0.4786]
[1763338753937,0.07976489,3084.6,3084.5,0.884104]
[1763338755195,0.07976489,3084.6,3079.5,3.97088992]
[1763338755196,0.405504,3084.4,3081.1,0.6674]
[1763338755372,0.44407569,3084.3,3082.1,0.4786]
[1763338755538,0.07976489,3084.6,3082.1,0.4786]
[1763338755539,0.4195,3084.4,3082.1,0.4786]
[1763338755976,0.07976489,3084.6,3082.1,0.4786]
[1763338756272,0.405504,3084.4,3082.1,0.4786]
[1763338756637,0.4195,3084.3,3081.7,0.4988]
[1763338756837,0.4195,3084.3,3081.1,0.1888]
[1763338756838,0.4195,3084.3,3082.0,0.5088]
[1763338757274,0.4195,3084.3,3082.1,1.5392448]
[1763338757573,0.4195,3084.3,3082.0,0.5088]
[1763338757784,0.16313649,3084.6,3082.1,0.4988]
[1763338757940,0.16313649,3084.6,3082.2,0.405504]
[1763338758164,0.07976489,3084.2,3082.4,0.405504]
[1763338758727,0.07976489,3084.2,3082.6,0.405504]
[1763338758881,0.07976489,3084.2,3084.1,0.1845]
[1763338759264,0.07976489,3084.2,3084.1,0.6833]
[1763338760108,0.07976489,3084.2,3084.1,0.1845]
[1763338760264,0.07976489,3084.2,3083.7,0.1845]
[1763338760691,0.07976489,3084.2,3083.3,0.1845]
[1763338761111,0.07976489,3084.2,3083.1,0.4988]
[1763338761260,0.07976489,3084.2,3083.2,0.4584]
[1763338761468,1.463,3084.8,3083.0,0.4584]
[1763338761696,0.5849,3086.5,3083.0,0.4584]
[1763338761697,0.4972,3086.3,3084.7,0.1963]
[1763338761866,0.4972,3086.3,3084.8,0.405504]
[1763338762070,0.4972,3086.3,3084.8,0.863904]
[1763338762279,0.4972,3086.3,3084.8,0.405504]
[1763338762480,0.1654,3086.8,3085.0,0.405504]
[1763338762681,1.6294,3087.6,3085.0,0.405504]
[1763338762881,0.66014,3087.5,3085.1,0.4584]
[1763338763092,0.16294,3087.5,3085.2,0.405504]
[1763338763491,0.16294,3087.5,3085.3,0.4584]
[1763338763676,0.16294,3087.5,3085.4,0.405504]
[1763338764077,0.16294,3087.5,3085.6,0.405504]
[1763338764341,0.162694,3087.4,3085.6,0.405504]
[1763338764522,0.162694,3087.4,3084.7,0.1963]
[1763338764523,0.162694,3087.4,3085.8,0.405504]
[1763338764801,0.002,3087.9,3085.8,0.405504]
[1763338764976,0.002,3087.9,3086.0,0.405504]
[1763338765380,0.4992,3087.9,3085.7,0.1963]
[1763338765792,0.4992,3087.9,3085.8,0.4584]
[1763338766211,2.13878831,3087.9,3084.7,0.1963]
[1763338766521,2.13878831,3087.9,3085.1,0.4584]
[1763338766522,0.405504,3087.8,3085.1,0.4584]
[1763338766720,0.71107883,3087.8,3085.1,0.4584]
[1763338766873,0.4972,3087.7,3085.2,0.405504]
[1763338767273,0.4972,3087.7,3085.4,0.405504]
[1763338767809,0.4972,3087.7,3085.3,0.4584]
[1763338767810,0.4972,3087.7,3085.0,0.4584]
[1763338768022,0.4972,3087.7,3085.1,0.405504]
[1763338768425,0.4972,3087.7,3085.1,0.4584]
[1763338768579,0.4972,3087.7,3085.2,0.405504]
[1763338768923,0.405504,3087.6,3085.1,0.4584]
[1763338769278,0.4972,3087.5,3085.2,0.405504]
[1763338769599,0.4972,3087.8,3085.2,0.405504]
[1763338769812,0.4972,3087.8,3085.4,0.405504]
[1763338770126,0.4972,3087.8,3085.6,0.405504]
[1763338770127,0.002,3087.7,3085.6,0.405504]
[1763338770303,0.002,3087.7,3085.4,0.405504]
[1763338770471,0.4972,3087.6,3085.0,0.405504]
[1763338770676,0.4972,3087.6,3085.2,0.405504]
[1763338771181,0.002,3087.7,3085.4,0.405504]
[1763338771578,0.002,3087.7,3085.6,0.405504]
[1763338772004,0.002,3087.7,3085.8,0.405504]
[1763338772404,0.002,3087.7,3086.0,0.405504]
[1763338772780,0.002,3087.7,3086.2,0.405504]
[1763338773181,0.002,3087.7,3086.4,0.405504]
[1763338773413,0.002,3087.7,3086.6,0.405504]
[1763338773612,0.002,3087.7,3087.6,0.1963]
[1763338773814,0.002,3087.7,3087.6,0.6547]
[1763338773989,0.002,3087.7,3086.6,0.405504]
[1763338774601,0.002,3087.7,3086.5,0.4584]
[1763338774797,0.002,3087.7,3086.6,0.405504]
[1763338775296,0.002,3087.7,3087.6,0.601804]
[1763338775710,0.002,3087.7,3087.2,0.1963]
[1763338775912,0.002,3087.7,3087.3,0.405504]
[1763338776297,0.002,3087.7,3086.3,0.1963]
[1763338776298,0.002,3087.7,3086.4,0.4584]
[1763338777736,0.002,3087.7,3086.5,0.405504]
[1763338778161,0.002,3087.7,3086.5,0.863904]
[1763338778833,0.002,3087.7,3086.3,0.1963]
[1763338778834,0.002,3087.7,3086.6,0.4584]
[1763338779610,0.002,3087.7,3086.7,0.405504]
[1763338780026,0.002,3087.7,3086.4,0.405504]
[1763338780241,0.002,3087.7,3086.8,0.405504]
[1763338780839,0.002,3087.7,3086.9,0.4584]
[1763338782028,0.002,3087.7,3087.0,0.405504]
[1763338782235,0.002,3087.7,3087.2,0.405504]
[1763338782644,0.002,3087.7,3087.3,0.4584]
[1763338782851,0.002,3087.7,3087.0,0.863904]
[1763338783021,0.1654,3087.6,3086.5,0.405504]
[1763338783220,0.002,3087.7,3086.5,0.405504]
[1763338783417,0.002,3087.7,3086.7,0.405504]
[1763338783952,0.002,3087.7,3086.9,0.405504]
[1763338784929,0.002,3087.7,3086.3,0.1963]
[1763338784930,0.1654,3087.6,3086.3,0.1963]
[1763338785130,0.6626,3087.6,3086.0,0.1963]
[1763338785353,0.6626,3087.6,3086.1,0.405504]
[1763338785561,0.6626,3087.6,3086.0,0.6547]
[1763338785760,0.4972,3087.5,3085.5,0.4584]
[1763338785960,0.4972,3087.5,3085.7,0.1963]
[1763338786345,0.4972,3087.5,3085.5,0.4584]
[1763338786545,0.4972,3087.5,3085.2,0.4584]
[1763338788069,0.4972,3087.5,3085.3,0.405504]
[1763338788363,1.9602,3087.5,3085.3,0.405504]
[1763338788568,0.21256,3087.4,3085.5,0.405504]
[1763338788866,0.1654,3087.6,3085.5,0.405504]
[1763338789030,0.1654,3087.6,3085.6,0.6547]
[1763338789226,0.1654,3087.6,3085.8,0.405504]
[1763338789664,0.4972,3087.5,3085.9,0.4584]
[1763338790271,0.4972,3087.5,3085.6,0.1963]
[1763338790982,0.4972,3087.5,3084.9,0.1963]
[1763338790983,0.4972,3087.5,3084.9,0.6547]
[1763338791145,1.25459362,3087.4,3084.9,0.6547]
[1763338791346,0.84908962,3087.2,3085.0,0.405504]
[1763338791679,1.25459362,3087.1,3084.9,0.6547]
[1763338791851,1.53905081,3087.0,3084.9,0.1963]
[1763338792047,1.53905081,3086.9,3084.9,0.1963]
[1763338792248,0.68996119,3086.8,3084.9,0.1963]
[1763338792479,0.4544,3086.8,3084.9,0.6729]
[1763338792681,1.9936448,3087.1,3084.9,0.6729]
[1763338792866,3.45721399,3087.0,3085.0,0.4766]
[1763338793209,0.69094164,3086.9,3085.0,0.4766]
[1763338793383,2.15394164,3086.9,3085.0,0.4766]
[1763338793546,1.463,3086.9,3085.0,0.4766]
[1763338793748,0.4544,3086.8,3085.0,0.4766]
[1763338793997,0.19174,3086.7,3085.0,0.4766]
[1763338795000,0.4544,3086.8,3085.0,0.4766]
[1763338795550,0.4544,3086.8,3084.9,0.1963]
[1763338795867,0.4544,3086.8,3084.4,0.405504]
[1763338795868,2.27835669,3086.8,3085.0,0.4766]
[1763338796062,1.5881408,3086.8,3085.0,0.4766]
[1763338796268,0.4544,3086.7,3085.0,0.4766]
[1763338797992,0.4544,3086.7,3084.1,0.001]
[1763338798170,0.4544,3086.7,3085.1,0.4766]
[1763338799680,0.4544,3086.7,3084.5,0.4766]
[1763338799903,0.4544,3086.7,3084.1,0.001]
[1763338800104,0.4544,3086.7,3084.7,0.6729]
[1763338800414,0.4544,3086.7,3084.2,0.4766]
[1763338801124,0.1669,3084.3,3084.1,0.001]
[1763338801274,0.1669,3085.5,3084.3,0.405504]
[1763338801625,0.4544,3085.9,3084.3,0.405504]
[1763338801782,0.4544,3086.3,3084.5,0.405504]
[1763338801967,0.1669,3086.6,3084.5,0.405504]
[1763338802171,0.4544,3086.5,3084.6,0.6568]
[1763338802371,0.1669,3086.6,3084.7,0.405504]
[1763338802567,1.464,3087.3,3084.7,0.882104]
[1763338802802,0.1669,3086.5,3084.7,0.882104]
[1763338803023,0.1669,3086.5,3084.9,0.405504]
[1763338803171,0.6213,3086.5,3084.9,0.405504]
[1763338803371,0.6213,3086.5,3085.0,0.4766]
[1763338803619,0.6213,3086.5,3085.1,0.405504]
[1763338803773,0.4544,3087.2,3085.1,0.405504]
[1763338803971,0.19184,3087.1,3085.3,0.405504]
[1763338804385,0.4544,3087.0,3084.7,0.882104]
[1763338804813,0.4544,3087.0,3084.7,0.405504]
[1763338805123,0.4544,3087.0,3084.0,0.1802]
[1763338805124,0.405504,3086.9,3084.0,0.1802]
[1763338805409,0.405504,3086.9,3084.1,0.4776]
[1763338805625,0.405504,3086.7,3084.1,0.4776]
[1763338805970,0.405504,3086.5,3084.1,0.4776]
[1763338806471,0.6213,3086.4,3084.1,0.4776]
[1763338806903,0.4544,3086.3,3084.1,0.4776]
[1763338807312,1.464,3086.2,3084.1,0.4776]
[1763338807610,0.19184,3086.1,3084.2,0.405504]
[1763338807769,0.19184,3086.1,3084.3,0.4766]
[1763338807770,0.64624,3086.1,3084.3,0.4766]
[1763338808106,0.1669,3086.4,3084.4,0.405504]
[1763338808510,0.1669,3086.4,3084.6,0.405504]
[1763338808905,0.1669,3086.4,3084.8,0.405504]
[1763338809209,0.4544,3086.3,3084.8,0.405504]
[1763338809511,0.4544,3086.3,3084.9,0.405504]
[1763338810112,0.4544,3086.3,3085.0,0.405504]
[1763338810623,0.4544,3086.3,3085.2,0.405504]
[1763338811129,0.1669,3086.4,3085.4,0.405504]
[1763338811272,0.1669,3086.9,3085.4,0.405504]
[1763338811479,0.1669,3086.9,3085.6,0.405504]
[1763338812010,0.1669,3086.9,3085.8,0.405504]
[1763338812213,0.1674,3087.6,3085.8,0.405504]
[1763338812413,0.4544,3087.5,3086.0,0.405504]
[1763338812572,0.4544,3087.5,3085.9,0.4766]
[1763338812773,0.4544,3087.5,3085.4,0.405504]
[1763338813410,0.4544,3087.5,3085.5,0.405504]
[1763338813614,0.4544,3087.5,3085.6,0.4766]
[1763338814686,0.19188808,3087.4,3085.1,0.1802]
[1763338814910,1.5881408,3087.3,3084.7,0.6568]
[1763338815122,1.54969391,3087.2,3084.7,0.6568]
[1763338815288,1.97049512,3087.2,3084.7,0.6568]
[1763338815482,1.14418991,3087.1,3084.7,0.6568]
[1763338815679,0.61785072,3087.0,3084.7,0.6568]
[1763338815910,0.405504,3086.9,3084.3,0.1802]
[1763338816212,0.405504,3086.7,3084.3,0.64]
[1763338816513,0.4836,3086.6,3084.4,0.4598]
[1763338817014,0.4836,3086.6,3084.5,0.405504]
[1763338817201,0.85668991,3086.8,3084.5,0.405504]
[1763338817202,0.68978991,3086.7,3084.5,0.405504]
[1763338817402,1.464,3086.5,3084.7,0.405504]
[1763338817590,1.464,3086.5,3084.6,0.4598]
[1763338817792,0.4836,3086.4,3084.7,0.405504]
[1763338817991,0.19476,3086.3,3084.7,0.405504]
[1763338818216,0.19476,3086.3,3084.8,0.4598]
[1763338819622,0.19476,3086.3,3084.9,0.405504]
[1763338819808,0.19476,3086.3,3086.2,0.1957]
[1763338820013,0.19476,3086.3,3085.0,0.6555]
[1763338820214,0.19476,3086.3,3086.2,0.1957]
[1763338820732,0.19476,3086.3,3085.9,0.4598]
[1763338820890,1.6309,3086.8,3085.9,0.4598]
[1763338821300,1.6309,3086.8,3085.1,0.473]
[1763338821504,0.4802,3086.7,3085.1,0.473]
[1763338821834,2.03474201,3086.7,3085.0,0.1957]
[1763338822323,0.8467642,3086.6,3084.3,0.6532]
[1763338822530,0.8467642,3086.6,3083.6,2.24170961]
[1763338822531,0.405504,3086.5,3083.6,2.24170961]
[1763338822687,0.0971,3084.1,3082.7,1.81383511]
[1763338822886,0.86165965,3085.6,3082.7,1.81383511]
[1763338822887,0.0971,3084.5,3082.8,0.473]
[1763338823092,0.86165965,3085.6,3082.8,0.473]
[1763338823093,0.4294,3086.0,3083.0,0.405504]
[1763338823327,1.464,3085.8,3083.1,0.21048371]
[1763338823529,1.464,3085.8,3083.2,0.473]
[1763338823530,0.72830782,3085.7,3083.2,0.473]
[1763338823831,0.29890782,3085.6,3083.2,0.473]
[1763338824026,0.29890782,3085.6,3083.3,0.405504]
[1763338824229,0.4294,3085.5,3083.3,0.405504]
[1763338824389,0.39600782,3085.4,3083.5,0.405504]
[1763338824830,0.0971,3085.4,3083.7,0.405504]
[1763338825208,1.464,3086.1,3083.5,2.741051]
[1763338825209,1.464,3086.1,3085.3,0.1936]
[1763338825410,0.2993083,3086.0,3085.3,0.1936]
[1763338825605,0.17633083,3085.9,3085.3,0.1936]
[1763338825935,0.17633083,3085.9,3085.4,0.473]
[1763338826297,0.42080121,3087.0,3085.4,0.473]
[1763338826298,1.464,3086.2,3085.4,0.473]
[1763338826498,0.29930311,3086.1,3085.4,0.473]
[1763338828647,0.002,3086.3,3085.4,0.473]
[1763338829176,0.002,3086.3,3085.0,0.1936]
[1763338829177,0.1669,3086.2,3085.0,0.1936]
[1763338829339,0.29930311,3086.1,3085.0,0.1936]
[1763338829542,0.29930311,3086.2,3085.1,0.473]
[1763338829741,0.30130311,3086.3,3085.1,0.473]
[1763338829961,0.002,3086.3,3085.1,0.473]
[1763338830267,0.002,3086.3,3085.2,0.405504]
[1763338830800,0.002,3086.3,3085.4,0.405504]
[1763338831251,0.002,3086.3,3085.5,0.473]
[1763338831462,0.002,3086.3,3084.5,0.473]
[1763338831463,0.4294,3086.2,3084.5,0.473]
[1763338831660,0.29926442,3086.1,3084.5,0.473]
[1763338831962,0.4294,3086.2,3084.5,0.473]
[1763338832127,0.29919522,3086.1,3084.5,0.473]
[1763338832329,0.4294,3086.2,3084.6,0.405504]
[1763338832759,0.002,3086.3,3084.8,0.405504]
[1763338832951,0.4314,3086.3,3084.8,0.405504]
[1763338833147,0.29911198,3086.2,3084.7,0.473]
[1763338833560,0.72851198,3086.2,3084.7,0.473]
[1763338833768,0.29911198,3086.1,3084.7,0.473]
[1763338834771,0.72851198,3086.1,3084.7,0.473]
[1763338834954,0.29931984,3086.0,3084.7,0.473]
[1763338835261,0.4294,3086.1,3084.7,0.473]
[1763338836528,0.002,3086.3,3084.7,0.473]
[1763338836768,0.002,3086.3,3084.8,0.405504]
[1763338837128,0.002,3086.3,3086.2,0.1936]
[1763338837530,0.002,3086.3,3086.2,0.6666]
[1763338837768,0.002,3086.3,3086.2,1.072104]
[1763338837954,1.6314,3087.6,3086.3,0.405504]
[1763338837955,0.002,3087.6,3086.3,0.405504]
[1763338838266,0.002,3087.6,3086.4,0.473]
[1763338838484,0.002,3087.6,3086.5,0.405504]
[1763338838851,0.002,3087.6,3086.6,0.473]
[1763338839196,0.002,3087.6,3086.7,0.405504]
[1763338839684,0.002,3087.6,3086.8,0.473]
[1763338841387,0.002,3087.6,3086.3,0.405504]
[1763338841564,0.002,3087.6,3086.5,0.405504]
[1763338841963,0.002,3087.6,3086.7,0.405504]
[1763338842489,0.002,3087.6,3086.9,0.405504]
[1763338842857,0.002,3087.6,3086.9,0.473]
[1763338843055,0.002,3087.6,3087.0,0.405504]
[1763338843372,0.002,3087.6,3087.1,0.473]
[1763338843886,0.002,3087.6,3087.2,0.405504]
[1763338844256,0.002,3087.6,3087.4,0.405504]
[1763338844762,0.002,3087.6,3087.5,0.878504]
[1763338845570,0.002,3087.9,3087.6,0.405504]
[1763338845767,0.002,3087.9,3087.6,0.878504]
[1763338846327,0.002,3087.9,3087.8,0.405504]
[1763338846627,0.002,3087.9,3087.8,0.878504]
[1763338848200,0.002,3087.9,3086.6,1.1337408]
[1763338848201,0.002,3087.9,3087.4,0.405504]
[1763338848400,0.002,3087.9,3086.0,2.88756037]
[1763338848401,0.1674,3087.8,3086.0,2.88756037]
[1763338848600,0.1674,3087.8,3086.6,0.473]
[1763338848805,0.1674,3087.8,3086.2,0.6666]
[1763338848806,0.5988,3087.8,3086.2,0.6666]
[1763338849002,0.002,3087.9,3086.3,0.405504]
[1763338849321,0.002,3087.9,3086.3,0.473]
[1763338849520,0.002,3087.9,3086.4,0.405504]
[1763338850122,0.002,3087.9,3086.6,0.405504]
[1763338850325,0.002,3087.9,3086.8,0.405504]
[1763338850498,0.002,3087.9,3087.0,0.405504]
[1763338850898,0.002,3087.9,3087.2,0.405504]
[1763338851124,0.002,3087.9,3087.4,0.405504]
[1763338851524,0.002,3087.9,3087.6,0.405504]
[1763338851729,0.002,3087.9,3087.8,0.405504]
[1763338851905,0.002,3087.9,3087.8,0.861004]
[1763338853100,0.1694,3087.9,3086.2,2.52445648]
[1763338853295,0.1694,3087.9,3086.3,0.70794565]
[1763338853502,0.1694,3087.9,3086.4,0.405504]
[1763338853703,0.1694,3087.9,3086.4,0.861004]
[1763338853922,0.1694,3087.9,3086.4,0.4555]
[1763338854122,0.1694,3087.9,3086.6,0.405504]
[1763338854528,0.1694,3087.9,3086.2,0.1936]
[1763338854529,0.1694,3087.9,3086.8,0.405504]
[1763338855045,0.002,3088.3,3087.0,0.405504]
[1763338855046,0.1663,3088.2,3087.0,0.405504]
[1763338855209,0.15521189,3088.2,3087.0,0.405504]
[1763338855405,0.15521189,3088.2,3087.2,0.405504]
[1763338856197,0.15521189,3088.2,3086.3,0.405504]
[1763338856396,0.15521189,3088.2,3087.3,0.405504]
[1763338856700,0.002,3088.3,3087.3,0.405504]
[1763338856897,0.002,3088.3,3087.4,0.405504]
[1763338857302,0.002,3088.3,3087.6,0.405504]
[1763338858505,0.002,3088.3,3087.8,0.405504]
[1763338858849,0.002,3088.3,3088.0,0.405504]
[1763338859621,0.002,3088.3,3087.9,0.4555]
[1763338859622,0.002,3088.3,3087.7,0.405504]
[1763338860003,0.002,3088.3,3087.0,0.1844]
[1763338860224,0.002,3088.3,3087.1,0.405504]
[1763338860442,0.002,3088.3,3087.1,0.861004]
[1763338860841,0.002,3088.3,3087.0,0.1844]
[1763338861046,0.4212,3088.3,3087.0,0.1844]
[1763338861342,0.4212,3088.3,3086.6,0.4555]
[1763338862149,0.4192,3088.2,3086.2,0.1936]
[1763338862348,0.4192,3088.2,3086.4,0.4555]
[1763338862862,0.4192,3088.2,3086.5,0.405504]
[1763338863353,0.002,3088.3,3086.7,0.405504]
[1763338863567,0.4192,3088.2,3086.7,0.405504]
[1763338863767,0.4192,3088.2,3086.8,0.405504]
[1763338863973,0.4192,3088.2,3086.4,0.001]
[1763338864270,0.4192,3088.2,3086.5,0.4555]
[1763338865472,0.29850979,3088.1,3086.4,0.001]
[1763338865639,0.29849554,3088.1,3086.4,0.001]
[1763338865822,0.4192,3088.0,3086.4,0.001]
[1763338866153,0.2989282,3087.9,3086.4,0.001]
[1763338866357,0.5744,3087.8,3086.4,0.001]
[1763338866658,0.1669,3086.5,3086.4,0.001]
[1763338867357,0.1669,3086.5,3086.0,0.001]
[1763338867358,0.5861,3086.5,3086.0,0.001]
[1763338867560,0.29892536,3086.4,3086.0,0.001]
[1763338867766,0.4182,3086.4,3086.0,0.001]
[1763338868476,0.68809253,3087.6,3086.1,0.1844]
[1763338868681,0.71666188,3087.5,3086.1,0.6399]
[1763338868881,0.47086989,3087.4,3086.1,0.6399]
[1763338869083,0.29846188,3087.3,3086.1,0.1844]
[1763338869293,0.1659,3086.2,3086.0,0.001]
[1763338869972,0.4182,3086.1,3086.0,0.001]
[1763338870369,0.1659,3086.2,3086.0,0.001]
[1763338870568,0.4182,3086.1,3086.0,0.001]
[1763338872862,0.4182,3086.1,3085.7,0.001]
[1763338874592,0.29630126,3086.0,3084.6,0.001]
[1763338874952,0.4182,3085.9,3084.6,0.001]
[1763338875303,0.29630126,3085.8,3084.6,0.001]
[1763338875481,0.405504,3085.7,3084.6,0.001]
[1763338875787,0.405504,3085.5,3084.6,0.001]
[1763338876090,0.29630126,3085.4,3084.6,0.001]
[1763338876276,0.71450126,3085.4,3084.6,0.001]
[1763338876591,0.29630126,3085.3,3084.6,0.001]
[1763338876759,0.71450126,3085.3,3084.6,0.001]
[1763338876966,0.4182,3085.3,3084.6,0.001]
[1763338877195,1.8822,3085.2,3084.6,0.001]
[1763338877385,0.18822,3085.1,3084.6,0.001]
[1763338877589,0.60642,3085.1,3084.6,0.001]